bitfinex/quotes_SOLUSD_20241101
["timestamp","ask_amount","ask_price","bid_price","bid_amount"]
[1730475154162,26.7815782,168.83,168.78,2.10489991]
[1730475154367,26.7815782,168.83,168.78,5.9247]
[1730475154776,26.7815782,168.83,168.65,29.6457]
[1730475154777,26.7815782,168.79,168.71,27.3802998]
[1730475155097,26.7815782,168.77,168.71,27.3802998]
[1730475155262,33.3255782,168.77,168.71,27.3802998]
[1730475155461,26.7815782,168.72,168.71,0.5987216]
[1730475155683,26.7815782,168.74,168.71,0.0987216]
[1730475155864,23.1403,168.77,168.61,27.044702]
[1730475155865,26.7815782,168.75,168.7,26.7815782]
[1730475156185,26.7815782,168.74,168.69,26.7815782]
[1730475156386,26.7815782,168.75,168.7,26.7815782]
[1730475156692,49.9218782,168.77,168.72,26.7815782]
[1730475156982,49.9218782,168.77,168.71,26.7815782]
[1730475157188,26.7815782,168.74,168.69,26.7815782]
[1730475157387,26.7815782,168.75,168.7,26.7815782]
[1730475157686,23.1403,168.77,168.73,26.7815782]
[1730475157877,26.7815782,168.76,168.7,26.7815782]
[1730475158591,49.9218782,168.77,168.71,26.7815782]
[1730475159584,49.9218782,168.77,168.7,14.8183]
[1730475159585,23.1403,168.77,168.72,26.7815782]
[1730475159772,49.9218782,168.77,168.71,26.7815782]
[1730475160086,26.7815782,168.76,168.71,26.7815782]
[1730475160283,26.7815782,168.76,168.7,41.5998782]
[1730475160590,26.7815782,168.74,168.7,14.8183]
[1730475160780,26.7815782,168.74,168.69,26.7815782]
[1730475160781,26.7815782,168.73,168.67,32.7101782]
[1730475160981,26.7815782,168.73,168.68,26.7815782]
[1730475161173,26.7815782,168.73,168.67,47.5319782]
[1730475161690,26.7815782,168.73,168.68,26.7815782]
[1730475161988,26.7815782,168.74,168.68,26.7815782]
[1730475162192,26.7815782,168.76,168.7,26.7815782]
[1730475162376,26.7815782,168.75,168.7,26.7815782]
[1730475162583,26.7815782,168.74,168.69,26.7815782]
[1730475162899,5.9255,168.76,168.69,32.7092782]
[1730475162900,26.7815782,168.75,168.69,32.7092782]
[1730475163276,26.7815782,168.74,168.69,26.7815782]
[1730475163591,26.7815782,168.73,168.67,26.7815782]
[1730475163787,26.7815782,168.73,168.68,26.7815782]
[1730475164587,26.7815782,168.74,168.69,26.7815782]
[1730475164768,26.7815782,168.74,168.69,32.7092782]
[1730475164972,26.7815782,168.73,168.69,5.9277]
[1730475165490,26.7815782,168.75,168.69,47.5292782]
[1730475165697,26.7815782,168.74,168.69,20.748]
[1730475166090,26.2815782,168.75,168.69,41.6015782]
[1730475166287,26.7815782,168.74,168.69,20.748]
[1730475166591,6.05109,168.76,168.68,32.7097782]
[1730475166592,26.7815782,168.73,168.68,32.7097782]
[1730475166894,32.8330682,168.75,168.69,26.7815782]
[1730475167094,29.0656,168.77,168.71,26.7815782]
[1730475167277,46.7815782,168.76,168.71,26.7815782]
[1730475167597,26.7815782,168.75,168.69,26.7815782]
[1730475167776,26.7815782,168.74,168.68,41.6024782]
[1730475168374,20.0,168.73,168.69,26.7815782]
[1730475168692,20.0,168.76,168.72,26.7815782]
[1730475169078,20.0,168.76,168.72,32.7083782]
[1730475169396,23.1403,168.77,168.74,26.7815782]
[1730475169697,55.8471782,168.77,168.72,26.7815782]
[1730475169899,26.7815782,168.76,168.7,26.7815782]
[1730475170287,26.7815782,168.76,168.71,26.7815782]
[1730475170592,26.7815782,168.76,168.7,26.7815782]
[1730475170797,0.12549,168.75,168.7,26.7815782]
[1730475171102,26.7815782,168.71,168.64,41.6054782]
[1730475171392,26.7815782,168.68,168.63,26.7815782]
[1730475171577,32.9484782,168.69,168.64,26.7815782]
[1730475171782,32.9484782,168.69,168.63,26.7815782]
[1730475172591,26.7815782,168.68,168.63,26.7815782]
[1730475172782,26.7815782,168.68,168.62,5.9303]
[1730475172783,0.12549,168.67,168.62,26.7815782]
[1730475172981,27.0325582,168.67,168.61,26.7815782]
[1730475173187,26.7815782,168.66,168.6,27.6693057]
[1730475173513,26.7815782,168.61,168.53,26.7815782]
[1730475173791,26.7815782,168.61,168.52,14.8349]
[1730475173792,26.7815782,168.59,168.54,21.3650216]
[1730475173990,15.3702,168.6,168.54,15.4319216]
[1730475174195,15.3702,168.6,168.54,21.3652216]
[1730475174494,26.7815782,168.59,168.54,47.1467998]
[1730475174696,26.7815782,168.6,168.56,5.9326]
[1730475174871,26.7815782,168.61,168.56,47.5456782]
[1730475175073,26.7815782,168.6,168.56,20.7641]
[1730475175274,41.70169,168.56,168.5,6.10053649]
[1730475175495,0.25098,168.54,168.44,26.7815782]
[1730475175669,41.5762,168.56,168.44,14.8416]
[1730475175870,26.7815782,168.52,168.46,26.7815782]
[1730475176191,26.7815782,168.52,168.44,14.8416]
[1730475176192,26.7815782,168.51,168.45,26.7815782]
[1730475176512,26.7815782,168.52,168.46,25.2815782]
[1730475176715,26.7815782,168.48,168.45,14.8411]
[1730475176888,26.7815782,168.5,168.45,14.8411]
[1730475177191,26.7815782,168.47,168.43,5.9371]
[1730475177394,20.25098,168.54,168.41,14.8443]
[1730475177395,26.7815782,168.46,168.41,14.8443]
[1730475177597,44.027864,168.54,168.38,5.9389]
[1730475177797,44.027864,168.54,168.35,29.6996]
[1730475177985,20.12549,168.49,168.36,6.10055762]
[1730475178292,6.3514,168.47,168.36,6.10055762]
[1730475178474,26.7815782,168.39,168.33,27.80690803]
[1730475178673,20.0,168.44,168.37,0.0987216]
[1730475178674,26.7815782,168.4,168.37,0.0987216]
[1730475179292,26.7815782,168.39,168.37,0.0987216]
[1730475179499,26.7815782,168.4,168.37,0.0987216]
[1730475180109,26.7815782,168.42,168.37,26.8802998]
[1730475180403,26.7815782,168.46,168.4,26.7815782]
[1730475180604,26.7815782,168.43,168.38,26.7815782]
[1730475180783,26.7815782,168.43,168.38,5.9389]
[1730475180988,22.3487,168.47,168.39,26.7815782]
[1730475181203,26.7815782,168.44,168.38,41.6288782]
[1730475181504,28.2845,168.47,168.38,41.6288782]
[1730475181505,22.3487,168.47,168.38,14.8473]
[1730475181801,26.7815782,168.39,168.37,0.0987216]
[1730475182521,44.027864,168.46,168.37,0.0987216]
[1730475182805,26.7815782,168.41,168.37,0.0987216]
[1730475183007,26.9070682,168.41,168.37,0.0987216]
[1730475183301,5.9364,168.45,168.37,0.0987216]
[1730475183302,0.25098,168.43,168.37,0.0987216]
[1730475183609,24.027864,168.43,168.37,0.0987216]
[1730475183782,0.25098,168.43,168.37,0.0987216]
[1730475184194,26.7815782,168.41,168.37,0.0987216]
[1730475184510,26.7815782,168.42,168.37,0.0987216]
[1730475184712,26.7815782,168.44,168.39,26.7815782]
[1730475185084,26.7815782,168.46,168.4,26.7815782]
[1730475185283,49.1302782,168.47,168.41,26.7815782]
[1730475185483,22.3487,168.47,168.42,26.7815782]
[1730475185681,6.3514,168.47,168.38,20.7861]
[1730475185885,6.5335,168.53,168.46,26.7815782]
[1730475186101,56.4317782,168.64,168.4,26.7815782]
[1730475186102,26.7815782,168.57,168.51,26.7815782]
[1730475186303,6.5335,168.58,168.5,26.7815782]
[1730475186304,26.7815782,168.56,168.5,26.7815782]
[1730475186692,6.5335,168.58,168.53,26.7815782]
[1730475187099,5.9316,168.59,168.54,26.7815782]
[1730475187301,24.21077764,168.6,168.55,26.7815782]
[1730475187589,6.6062,168.63,168.48,26.7815782]
[1730475187590,32.7120782,168.62,168.56,26.7815782]
[1730475187806,26.7815782,168.59,168.53,26.7815782]
[1730475188006,5.9308,168.61,168.42,20.7813]
[1730475188805,5.9308,168.61,168.42,14.8438]
[1730475189180,14.8262,168.62,168.5,26.7815782]
[1730475189181,26.7815782,168.56,168.5,26.7815782]
[1730475189385,26.7815782,168.57,168.51,26.7815782]
[1730475189606,26.7815782,168.56,168.5,26.7815782]
[1730475189812,26.7815782,168.56,168.44,0.32]
[1730475189813,46.7815782,168.57,168.51,26.7815782]
[1730475190106,26.7815782,168.55,168.49,26.7815782]
[1730475190287,46.7815782,168.59,168.53,26.7815782]
[1730475190489,6.6062,168.63,168.45,50.4598]
[1730475190691,6.6062,168.63,168.46,27.235874]
[1730475190885,6.6062,168.63,168.47,0.32]
[1730475191193,20.994,168.66,168.48,24.153354]
[1730475191390,15.0649,168.66,168.48,24.153354]
[1730475191692,47.7755782,168.66,168.6,26.7815782]
[1730475192108,26.7815782,168.65,168.6,26.7815782]
[1730475192309,47.7755782,168.66,168.61,26.7815782]
[1730475192700,6.432,168.69,168.65,26.7815782]
[1730475192884,12.3603,168.69,168.65,26.7815782]
[1730475193089,26.7815782,168.66,168.59,26.7815782]
[1730475193407,0.32943755,168.68,168.56,5.9325]
[1730475193911,26.7815782,168.63,168.57,26.7815782]
[1730475194101,26.7815782,168.65,168.59,26.7815782]
[1730475194307,26.7815782,168.63,168.58,26.7815782]
[1730475194490,46.7815782,168.64,168.58,26.7815782]
[1730475194686,20.0,168.64,168.59,26.7815782]
[1730475194907,20.0,168.64,168.49,20.7726]
[1730475194908,26.7815782,168.66,168.61,26.7815782]
[1730475195097,26.7815782,168.66,168.56,26.7815782]
[1730475195098,46.7815782,168.66,168.6,26.7815782]
[1730475195286,46.7815782,168.66,168.61,26.7815782]
[1730475195487,6.432,168.69,168.65,26.7815782]
[1730475195710,12.3601,168.69,168.56,26.7815782]
[1730475196213,12.3601,168.69,168.63,26.7815782]
[1730475196390,32.7100782,168.68,168.63,26.7815782]
[1730475196591,26.7815782,168.64,168.58,26.7815782]
[1730475196793,26.7815782,168.62,168.56,26.7815782]
[1730475197097,26.7815782,168.63,168.58,26.7815782]
[1730475197310,26.7815782,168.64,168.58,26.7815782]
[1730475197704,26.7815782,168.64,168.44,1.5200661]
[1730475197705,20.0,168.65,168.61,26.7815782]
[1730475198010,26.05419,168.67,168.63,26.7815782]
[1730475198317,26.7815782,168.68,168.65,26.7815782]
[1730475198318,20.0,168.68,168.65,26.7815782]
[1730475198613,5.9266,168.73,168.67,26.7815782]
[1730475198790,5.9266,168.73,168.68,26.7815782]
[1730475199214,5.9266,168.73,168.69,26.7815782]
[1730475199509,15.2504,168.74,168.71,26.7815782]
[1730475199717,47.9584782,168.74,168.68,26.7815782]
[1730475199914,47.9584782,168.74,168.66,5.9289]
[1730475199915,47.9584782,168.74,168.69,26.7815782]
[1730475200105,35.9925,168.74,168.6,14.8272]
[1730475200305,0.32943755,168.73,168.57,5.9322]
[1730475200692,20.32943755,168.73,168.57,5.9322]
[1730475200908,24.027864,168.72,168.57,20.7628]
[1730475201097,0.25098,168.7,168.57,20.7628]
[1730475201297,27.0325582,168.7,168.57,20.7628]
[1730475201507,26.7815782,168.68,168.63,26.7815782]
[1730475201895,26.7815782,168.69,168.63,26.7815782]
[1730475202104,20.0,168.68,168.63,26.7815782]
[1730475202312,20.0,168.68,168.64,26.7815782]
[1730475202510,26.7815782,168.67,168.62,26.7815782]
[1730475202916,46.7815782,168.68,168.62,26.7815782]
[1730475203214,26.7815782,168.67,168.62,26.7815782]
[1730475203517,26.7815782,168.65,168.59,26.7815782]
[1730475203710,26.7815782,168.64,168.59,26.7815782]
[1730475203912,26.7815782,168.64,168.56,20.764]
[1730475203913,26.7815782,168.62,168.57,26.7815782]
[1730475204115,26.7815782,168.61,168.56,26.7815782]
[1730475204301,46.7815782,168.62,168.56,26.7815782]
[1730475204505,46.7815782,168.62,168.57,26.7815782]
[1730475204506,20.0,168.62,168.57,26.7815782]
[1730475204703,20.0,168.62,168.55,5.9328]
[1730475204704,26.7815782,168.6,168.55,26.7815782]
[1730475204911,27.0325582,168.61,168.55,26.7815782]
[1730475205101,20.0,168.6,168.55,26.7815782]
[1730475205502,46.7815782,168.6,168.55,26.7815782]
[1730475205702,26.7815782,168.6,168.55,26.7815782]
[1730475205912,26.7815782,168.6,168.42,3.3335]
[1730475205913,5.9315,168.59,168.54,26.7815782]
[1730475206123,20.0,168.62,168.58,26.7815782]
[1730475206297,42.9256782,168.63,168.49,20.7726]
[1730475206298,16.1441,168.63,168.6,26.7815782]
[1730475206498,16.1441,168.63,168.61,26.7815782]
[1730475206721,6.3852,168.64,168.62,26.7815782]
[1730475206916,6.3852,168.64,168.61,26.7815782]
[1730475207617,46.7815782,168.63,168.57,26.7815782]
[1730475207796,12.315,168.64,168.6,26.7815782]
[1730475208219,12.315,168.64,168.59,32.7128782]
[1730475208423,12.315,168.64,168.59,26.7815782]
[1730475208607,6.3852,168.64,168.6,26.7815782]
[1730475208920,25.9289,168.67,168.62,26.7815782]
[1730475209291,25.9289,168.67,168.59,20.7602]
[1730475209292,52.7104782,168.67,168.61,26.7815782]
[1730475209519,25.9289,168.67,168.62,26.7815782]
[1730475209696,52.7104782,168.67,168.62,26.7815782]
[1730475209892,20.0,168.67,168.63,26.7815782]
[1730475210295,5.9284,168.68,168.63,26.7815782]
[1730475210519,20.0,168.67,168.63,26.7815782]
[1730475211133,20.0,168.67,168.63,32.7115782]
[1730475211619,22.7226,168.69,168.64,26.7815782]
[1730475211917,22.7226,168.69,168.66,26.7815782]
[1730475212123,14.8157,168.74,168.63,20.7553]
[1730475212124,32.7084782,168.73,168.68,26.7815782]
[1730475212310,5.9269,168.73,168.68,26.7815782]
[1730475212514,26.7815782,168.78,168.72,26.7815782]
[1730475212710,26.7815782,168.77,168.71,26.7815782]
[1730475213016,26.7815782,168.76,168.7,26.7815782]
[1730475213327,20.7369,168.78,168.65,20.7529]
[1730475213328,26.7815782,168.77,168.65,50.4]
[1730475213508,5.9248,168.78,168.73,26.7815782]
[1730475213509,32.7063782,168.78,168.73,26.7815782]
[1730475213821,32.7063782,168.78,168.72,26.7815782]
[1730475214028,5.9248,168.78,168.73,26.7815782]
[1730475214204,33.6624782,168.8,168.74,26.7815782]
[1730475214400,12.8053,168.8,168.76,26.7815782]
[1730475214604,6.8809,168.8,168.77,26.7815782]
[1730475214806,6.8809,168.8,168.76,26.7815782]
[1730475215023,0.5,168.8,168.76,26.7815782]
[1730475215219,0.5,168.8,168.73,20.7423]
[1730475215220,0.5,168.8,168.78,26.7815782]
[1730475215608,0.5,168.8,168.79,26.7815782]
[1730475216010,0.5,168.8,168.78,26.7815782]
[1730475216211,0.5,168.8,168.79,26.7815782]
[1730475216420,0.5,168.8,168.77,26.7815782]
[1730475216626,0.5,168.8,168.76,26.7815782]
[1730475217007,0.5,168.8,168.77,26.7815782]
[1730475217403,0.5,168.8,168.76,26.7815782]
[1730475217608,0.5,168.8,168.77,26.7815782]
[1730475217911,0.5,168.8,168.75,5.9256]
[1730475217912,0.5,168.8,168.78,26.7815782]
[1730475218230,0.5,168.8,168.79,26.7815782]
[1730475220436,0.5,168.8,168.79,59.4876564]
[1730475220750,12.1565,168.9,168.79,103.9215564]
[1730475221035,6.2357,168.9,168.88,26.7815782]
[1730475221542,12.1565,168.9,168.86,26.7815782]
[1730475221839,26.7815782,168.89,168.83,26.7815782]
[1730475222010,38.9380782,168.9,168.84,26.7815782]
[1730475222217,12.1565,168.9,168.85,26.7815782]
[1730475222740,5.9192,168.95,168.89,26.7815782]
[1730475222916,5.9192,168.95,168.91,26.7815782]
[1730475223111,0.5987216,168.97,168.94,26.7815782]
[1730475223427,33.2984998,168.97,168.88,26.7815782]
[1730475223637,26.7815782,168.96,168.83,29.614]
[1730475223812,26.7815782,168.96,168.91,26.7815782]
[1730475224016,33.2984998,168.97,168.92,26.7815782]
[1730475224237,6.5169216,168.97,168.92,26.7815782]
[1730475224945,27.3802998,168.97,168.92,26.7815782]
[1730475225117,26.7815782,168.93,168.85,26.7815782]
[1730475225439,21.64185915,168.97,168.85,26.7815782]
[1730475225644,26.7815782,168.9,168.85,26.7815782]
[1730475225849,0.32943755,168.96,168.79,5.9241]
[1730475226135,0.32943755,168.96,168.72,16.491]
[1730475226136,24.027864,168.95,168.73,50.3762]
[1730475226642,23.776884,168.93,168.73,50.3762]
[1730475226844,26.7815782,168.88,168.83,26.7815782]
[1730475227052,26.7815782,168.86,168.81,26.7815782]
[1730475227339,26.7815782,168.85,168.8,26.7815782]
[1730475227561,26.7815782,168.87,168.81,26.7815782]
[1730475227838,0.25098,168.9,168.73,50.3762]
[1730475227839,20.0,168.86,168.82,26.7815782]
[1730475228224,20.0,168.87,168.83,26.7815782]
[1730475229239,26.7815782,168.91,168.86,26.7815782]
[1730475229448,26.7815782,168.9,168.84,26.7815782]
[1730475229640,5.9201,168.92,168.84,26.7815782]
[1730475229641,26.7815782,168.89,168.84,26.7815782]
[1730475230243,26.7815782,168.9,168.84,26.7815782]
[1730475230455,26.7815782,168.9,168.86,26.7815782]
[1730475230456,20.0,168.9,168.86,26.7815782]
[1730475230624,20.0,168.91,168.88,26.7815782]
[1730475230818,20.0,168.91,168.89,26.7815782]
[1730475231022,5.9189,168.95,168.9,26.7815782]
[1730475231239,5.9186,168.96,168.92,26.7815782]
[1730475231452,32.9311782,168.98,168.93,26.7815782]
[1730475231453,6.1496,168.98,168.93,26.7815782]
[1730475231665,6.1496,168.98,168.88,26.7815782]
[1730475231666,6.1496,168.98,168.95,26.7815782]
[1730475232248,5.9171,169.0,168.95,26.7815782]
[1730475232450,26.7815782,169.01,168.95,26.7815782]
[1730475232657,32.6987782,169.0,168.95,47.4975782]
[1730475232838,5.9175,168.99,168.95,41.5787782]
[1730475233338,5.9171,169.0,168.96,26.7815782]
[1730475233535,26.7815782,169.03,168.96,26.7815782]
[1730475233759,5.9164,169.02,168.96,26.7815782]
[1730475234055,12.1454,169.04,168.96,26.7815782]
[1730475234265,12.1454,169.04,168.96,53.5631564]
[1730475234643,6.2294,169.04,168.96,32.7000782]
[1730475234965,5.9168,169.01,168.96,32.7000782]
[1730475235131,5.9172,169.0,168.96,26.7815782]
[1730475235337,5.9175,168.99,168.96,26.7815782]
[1730475235867,5.9175,168.99,168.95,26.7815782]
[1730475236035,5.9175,168.99,168.93,5.9195]
[1730475236036,33.2984998,168.97,168.91,26.7815782]
[1730475236233,20.0,168.96,168.92,26.7815782]
[1730475237465,25.9188,168.96,168.92,26.7815782]
[1730475237956,25.9188,168.96,168.91,26.7815782]
[1730475238161,20.0,168.94,168.9,26.7815782]
[1730475238376,20.0,168.94,168.86,5.922]
[1730475238377,52.7003782,168.96,168.91,26.7815782]
[1730475238665,52.7003782,168.96,168.9,26.7815782]
[1730475238841,20.0,168.93,168.88,26.7815782]
[1730475239043,20.0,168.93,168.89,26.7815782]
[1730475239247,20.0,168.93,168.9,26.7815782]
[1730475239555,20.0,168.95,168.91,26.7815782]
[1730475239759,20.0,168.95,168.92,26.7815782]
[1730475240267,20.5987216,168.97,168.94,26.7815782]
[1730475240564,0.5987216,168.97,168.96,26.7815782]
[1730475241571,6.5169216,168.97,168.92,20.7193]
[1730475241868,6.5169216,168.97,168.88,56.3875782]
[1730475241869,6.5169216,168.97,168.94,26.7815782]
[1730475242241,0.5987216,168.97,168.96,26.7815782]
[1730475244356,0.5987216,168.97,168.94,26.7815782]
[1730475244556,6.5169216,168.97,168.94,26.7815782]
[1730475244753,0.5987216,168.97,168.95,26.7815782]
[1730475244976,0.5987216,168.97,168.96,26.7815782]
[1730475245382,0.5987216,168.97,168.95,26.7815782]
[1730475245557,27.3802998,168.97,168.92,26.7815782]
[1730475245874,33.2984998,168.97,168.92,26.7815782]
[1730475246170,33.2984998,168.97,168.88,41.5847782]
[1730475246171,6.5169216,168.97,168.95,26.7815782]
[1730475246474,0.5987216,168.97,168.95,26.7815782]
[1730475246767,0.5987216,168.97,168.96,26.7815782]
[1730475247145,0.5987216,168.97,168.95,26.7815782]
[1730475247341,0.5987216,168.97,168.89,5.921]
[1730475247342,47.3802998,168.97,168.92,26.7815782]
[1730475247541,5.9189,168.95,168.91,26.7815782]
[1730475247755,5.9189,168.95,168.9,26.7815782]
[1730475247956,5.9189,168.95,168.91,26.7815782]
[1730475248576,46.7815782,168.94,168.88,26.7815782]
[1730475248759,26.7815782,168.91,168.85,26.7815782]
[1730475249080,20.0,168.87,168.82,26.7815782]
[1730475249264,26.7815782,168.87,168.82,26.7815782]
[1730475249463,26.7815782,168.87,168.81,20.7333]
[1730475249464,20.0,168.89,168.84,26.7815782]
[1730475249766,20.0,168.89,168.81,20.7333]
[1730475249767,46.7815782,168.89,168.83,26.7815782]
[1730475249963,20.0,168.87,168.84,26.7815782]
[1730475250173,20.0,168.87,168.83,26.7815782]
[1730475250365,20.0,168.87,168.82,26.7815782]
[1730475250366,46.7815782,168.87,168.82,26.7815782]
[1730475250882,20.0,168.87,168.82,26.7815782]
[1730475251077,26.7815782,168.85,168.79,26.7815782]
[1730475251376,46.7815782,168.87,168.81,26.7815782]
[1730475251571,20.0,168.85,168.8,26.7815782]
[1730475251990,26.7815782,168.83,168.78,26.7815782]
[1730475252155,5.9227,168.84,168.79,26.7815782]
[1730475252347,32.7042782,168.84,168.79,26.7815782]
[1730475252546,5.9227,168.84,168.8,26.7815782]
[1730475252960,32.7042782,168.84,168.79,26.7815782]
[1730475253269,5.9227,168.84,168.79,26.7815782]
[1730475254282,32.7042782,168.84,168.79,26.7815782]
[1730475254485,32.7042782,168.84,168.78,26.7815782]
[1730475254684,46.7815782,168.83,168.78,26.7815782]
[1730475254882,20.0,168.83,168.8,26.7815782]
[1730475255383,26.7815782,168.86,168.81,26.7815782]
[1730475255587,20.0,168.84,168.79,26.7815782]
[1730475255757,26.7815782,168.83,168.77,26.7815782]
[1730475256079,20.0,168.84,168.81,26.7815782]
[1730475256282,20.0,168.86,168.82,26.7815782]
[1730475256589,5.9221,168.86,168.82,26.7815782]
[1730475256753,26.7815782,168.88,168.83,26.7815782]
[1730475256754,32.7031782,168.88,168.83,26.7815782]
[1730475257085,5.9216,168.88,168.84,26.7815782]
[1730475257280,32.7014782,168.92,168.86,26.7815782]
[1730475257483,32.7014782,168.92,168.82,20.7319]
[1730475257484,26.7815782,168.87,168.82,26.7815782]
[1730475257660,26.7815782,168.88,168.83,26.7815782]
[1730475258165,20.0,168.87,168.82,26.7815782]
[1730475258680,25.9214,168.88,168.83,32.7045782]
[1730475258984,32.7001782,168.96,168.87,26.7815782]
[1730475259168,32.7001782,168.96,168.83,20.7307]
[1730475259169,32.7001782,168.96,168.9,26.7815782]
[1730475259359,26.7815782,168.95,168.89,26.7815782]
[1730475259578,26.7815782,168.93,168.87,26.7815782]
[1730475259760,26.7815782,168.92,168.87,26.7815782]
[1730475260077,26.7815782,168.91,168.85,26.7815782]
[1730475260261,26.7815782,168.91,168.83,20.7307]
[1730475260262,26.7815782,168.9,168.84,26.7815782]
[1730475260463,26.7815782,168.89,168.83,41.5892782]
[1730475260667,26.7815782,168.9,168.84,26.7815782]
[1730475261461,26.7815782,168.89,168.84,26.7815782]
[1730475261682,26.7815782,168.89,168.83,26.7815782]
[1730475261683,46.7815782,168.88,168.83,26.7815782]
[1730475261868,46.7815782,168.88,168.82,5.9234]
[1730475261869,20.0,168.86,168.82,5.9234]
[1730475262062,20.0,168.86,168.83,26.7815782]
[1730475262264,20.0,168.86,168.82,26.7815782]
[1730475262574,20.0,168.86,168.81,26.7815782]
[1730475262768,26.9070682,168.85,168.79,26.7815782]
[1730475262973,26.7815782,168.84,168.78,26.7815782]
[1730475263484,26.7815782,168.79,168.74,26.7815782]
[1730475263671,26.7815782,168.79,168.73,41.5980782]
[1730475263672,32.7060782,168.79,168.73,41.5980782]
[1730475263978,5.9245,168.79,168.74,26.7815782]
[1730475264174,20.0,168.8,168.76,26.7815782]
[1730475264368,5.9234,168.83,168.79,26.7815782]
[1730475264758,20.0,168.84,168.8,26.7815782]
[1730475265163,20.0,168.84,168.79,26.7815782]
[1730475265966,20.0,168.84,168.8,26.7815782]
[1730475266169,32.7028782,168.88,168.83,26.7815782]
[1730475266505,26.7815782,168.85,168.8,26.7815782]
[1730475266673,5.9213,168.88,168.79,26.7815782]
[1730475266674,26.7815782,168.84,168.79,26.7815782]
[1730475266985,32.7028782,168.88,168.79,26.7815782]
[1730475266986,26.7815782,168.85,168.79,26.7815782]
[1730475267385,26.7815782,168.84,168.79,26.7815782]
[1730475267583,26.7815782,168.84,168.78,26.7815782]
[1730475267889,5.9227,168.84,168.8,26.7815782]
[1730475268487,20.12549,168.87,168.82,26.7815782]
[1730475268665,20.0,168.87,168.82,26.7815782]
[1730475269081,26.7815782,168.87,168.82,26.7815782]
[1730475270186,20.0,168.86,168.82,32.7048782]
[1730475270890,20.0,168.87,168.83,26.7815782]
[1730475271366,46.7815782,168.87,168.82,47.5134782]
[1730475271575,20.0,168.87,168.82,47.5134782]
[1730475271767,20.0,168.87,168.73,32.9666]
[1730475271768,20.0,168.87,168.84,26.7815782]
[1730475271966,6.5041,168.89,168.86,26.7815782]
[1730475272188,38.8132782,168.93,168.88,26.7815782]
[1730475272486,6.1118,168.93,168.9,26.7815782]
[1730475272792,16.0807,168.95,168.91,26.7815782]
[1730475272999,16.0807,168.95,168.92,26.7815782]
[1730475273369,16.0807,168.95,168.9,26.7815782]
[1730475273666,26.7815782,168.94,168.89,26.7815782]
[1730475273866,26.7815782,168.9,168.85,26.7815782]
[1730475274292,20.0,168.9,168.85,26.7815782]
[1730475274970,20.0,168.9,168.81,20.7333]
[1730475274971,20.0,168.9,168.87,26.7815782]
[1730475275176,20.0,168.91,168.87,26.7815782]
[1730475275474,25.9203,168.91,168.87,26.7815782]
[1730475275673,52.7018782,168.91,168.86,26.7815782]
[1730475275873,52.7018782,168.91,168.85,26.7815782]
[1730475276076,26.7815782,168.89,168.83,26.7815782]
[1730475276489,5.9213,168.88,168.83,26.7815782]
[1730475276690,50.8094422,168.9,168.84,26.7815782]
[1730475276879,20.0,168.89,168.86,26.7815782]
[1730475277272,5.9203,168.91,168.87,26.7815782]
[1730475277594,20.0,168.9,168.86,26.7815782]
[1730475278098,20.0,168.91,168.88,26.7815782]
[1730475278267,20.0,168.93,168.89,26.7815782]
[1730475278467,20.0,168.94,168.9,32.7019782]
[1730475278791,16.0807,168.95,168.92,26.7815782]
[1730475278998,0.5987216,168.97,168.94,26.7815782]
[1730475279494,0.5987216,168.97,168.93,26.7815782]
[1730475279899,0.5987216,168.97,168.94,26.7815782]
[1730475280475,0.5987216,168.97,168.87,29.6073]
[1730475280476,0.12549,168.96,168.91,26.7815782]
[1730475280695,0.12549,168.96,168.87,29.6073]
[1730475280696,26.7815782,168.93,168.87,41.5854782]
[1730475280872,26.7815782,168.93,168.87,47.5071782]
[1730475281301,50.8094422,168.93,168.88,26.7815782]
[1730475281475,50.8094422,168.93,168.87,41.5854782]
[1730475282291,20.0,168.94,168.89,26.7815782]
[1730475282801,20.0,168.94,168.89,32.7022782]
[1730475283100,20.0,168.94,168.9,26.7815782]
[1730475283393,20.0,168.95,168.9,26.7815782]
[1730475283573,25.9189,168.95,168.9,26.7815782]
[1730475284097,26.9070682,168.93,168.88,26.7815782]
[1730475284979,0.12549,168.94,168.89,26.7815782]
[1730475285178,20.0,168.93,168.89,26.7815782]
[1730475285394,20.0,168.93,168.9,26.7815782]
[1730475285581,6.04509,168.94,168.9,26.7815782]
[1730475285894,46.7815782,168.93,168.87,26.7815782]
[1730475286098,26.7815782,168.92,168.87,26.7815782]